[Event "Deutschland Grand Prix 2022"]
[Site "Dortmund"]
[Date "2022.07.23"]
[Round "6.2"]
[White "Eljanov, Pavel"]
[Black "Bluebaum, Matthias"]
[Result "1-0"]
[ECO "A07"]
[WhiteElo "2681"]
[BlackElo "2673"]
[Annotator "TA"]
[PlyCount "105"]
[EventDate "2022.07.17"]
[EventType "tourn"]
[EventCountry "GER"]
[SourceTitle "playchess.com"]
[Source "ChessBase"]
[SourceQuality "1"]
[TimeControl "40/5400+30:1800+30"]

{[%evp 9,105,6,22,26,20,10,13,0,7,0,0,0,6,5,31,23,23,23,25,29,40,41,54,53,68,68,63,61,64,61,76,80,84,41,57,67,62,34,58,61,62,61,65,43,91,66,62,0,87,90,86,89,88,94,94,90,153,154,199,192,185,179,215,198,261,249,443,424,421,414,443,447,410,448,438,433,433,430,559,306,474,471,471,393,537,531,405,405,702,326,712,683,650,592,588,566,513,469]} 1. Nf3 {[%emt 0:00:04]} d5 {[%emt 0:00:04]} 2. g3 {[%emt 0:00:08]} Bg4 {[%emt 0:01:15]} 3. Bg2 {[%emt 0:00:05]} e6 {[%emt 0:00:06]} 4. h3 {[%emt 0:01:47]} Bh5 {[%emt 0:00:05]} 5. O-O {[%emt 0:00:45]} Nf6 {[%emt 0:00:19]} 6. c4 {[%emt 0:00:10] A07: Réti Opening: New York and Capablanca Systems.} c6 {[%emt 0:00:14]} 7. Qb3 {[%emt 0:00:45]} Qb6 {[%emt 0:00:51]} 8. d3 {[%emt 0:04:12] The position is equal.} Be7 {[%emt 0:05:42]} 9. Be3 {[%emt 0:02:19]} Qxb3 {[%emt 0:01:21]} 10. axb3 {[%emt 0:00:04]} Bxf3 {[%emt 0:02:55]} 11. Bxf3 {[%emt 0:00:11] [#]} a6 $146 {[%emt 0:00:04]} ({Predecessor:} 11... Na6 12. Nc3 O-O 13. cxd5 exd5 14. d4 Nc7 15. Bd2 Ne6 16. e3 Ng5 17. Bg2 h5 {1-0 (60) Bacrot,E (2647)-Bosiocic,M (2545) Terme Catez 2021}) 12. Bd4 {[%emt 0:11:08]} Nbd7 {[%emt 0:14:04]} 13. Bc3 {[%emt 0:00:23]} O-O {[%emt 0:00:47]} 14. b4 {[%emt 0:05:05]} Bd6 {[%emt 0:04:49]} 15. Nd2 {[%emt 0:03:26]} e5 {[%emt 0:13:21] aiming for ...d4.} 16. Nb3 {[%emt 0:03:19]} dxc4 {[%emt 0:06:23]} 17. dxc4 {[%emt 0:00:04]} e4 {[%emt 0:00:03]} 18. Bg2 {[%emt 0:00:31]} Be5 {[%emt 0:00:38]} 19. Rfd1 {[%emt 0:04:03][%cal Bf1d1,Bd1d4,Bd4d6][%mdl 32]} Rfe8 {[%emt 0:07:41]} 20. Bxe5 {[%emt 0:07:50]} Rxe5 {[%emt 0:00:33]} 21. c5 Kf8 22. Na5 Rb8 23. Rd4 (23. Nc4 $5 {[%cal Rc4e5]}) 23... Ke7 24. Rad1 {[%cal Ba1d1,Bd1d4,Bd4c4][%mdl 32]} Nf8 $1 25. Rd6 {[%cal Od6c6] And now Rxc6! would win.} Re6 26. R1d4 {0x0.001ebe477e30dp-1022s more active pieces. The black rooks are badly placed.} Ke8 (26... Rxd6 $14 27. cxd6+ Ke8) 27. Nc4 Ke7 28. Na5 Ke8 29. Rxe6+ {Black is on the road to losing.} Nxe6 30. Rc4 e3 31. fxe3 {[%cal Bf2e3,Be3e4][%mdl 32]} Nd7 32. h4 f5 (32... Kd8 $142) 33. Bh3 $16 g6 34. e4 Ne5 {[#]} 35. Rc3 ({And not} 35. exf5 Nxc4 36. Nxc4 Nd4 $15) 35... Nd4 36. Kf2 {exf5 is the strong threat.} Ke7 (36... Kf7 $142 37. Ke3 Nb5) 37. exf5 $18 Nxf5 {[#]} (37... gxf5 {is a better defense.} 38. Ke3 Nb5) 38. g4 $1 Nh6 39. Re3 Nhf7 40. Nc4 Ke6 41. g5+ Kd5 42. Nb6+ Kd4 43. Ra3 {Threatens to win with e3+.} h5 44. e3+ Ke4 45. Ke2 Ng4 46. Nd7 Rd8 47. Rd3 Kf5 48. Rd4 Re8 (48... Ra8 $142 49. Kf3 Ke6) 49. Rf4+ Ke6 50. Nf6 {White is clearly winning.} Rh8 51. Nxg4 hxg4 52. Bxg4+ Ke7 {[%emt 0:46:00]} 53. Re4+ {Weighted Error Value: White=0.12 (very precise) /Black=0.20 (precise)} 1-0

[Event "Deutschland Grand Prix 2022"]
[Site "Dortmund"]
[Date "2022.07.23"]
[Round "6.3"]
[White "Deac, Bogdan-Daniel"]
[Black "McShane, Luke J"]
[Result "1-0"]
[ECO "E53"]
[WhiteElo "2692"]
[BlackElo "2649"]
[Annotator "TA"]
[PlyCount "113"]
[EventDate "2022.07.17"]
[EventType "tourn"]
[EventCountry "GER"]
[SourceTitle "playchess.com"]
[Source "ChessBase"]
[SourceQuality "1"]
[TimeControl "40/5400+30:1800+30"]

{[%evp 18,113,7,0,25,0,0,0,7,11,33,7,29,9,4,-8,0,0,0,0,27,-12,-14,-6,-1,-5,8,0,0,0,0,0,0,-8,-18,-83,6,13,28,21,27,40,33,39,39,26,23,29,233,221,224,170,163,125,531,530,530,530,511,510,483,468,435,420,650,641,607,552,12840,12840,12842,12843,12843,12843,12843,12842,12842,12841,12841,12842,12842,12842,12842,12841,12841,12840,12841,12841,12841,12842,12842,12843,12843,12843,12841,12842,12842,12842]} 1. d4 {[%emt 0:00:03]} Nf6 {[%emt 0:00:09]} 2. c4 {[%emt 0:00:02]} e6 {[%emt 0:00:06]} 3. Nc3 {[%emt 0:00:08]} Bb4 {[%emt 0:00:07]} 4. e3 {[%emt 0:00:07]} O-O {[%emt 0:00:18]} 5. Bd3 {[%emt 0:00:04]} d5 {[%emt 0:01:45]} 6. a3 {[%emt 0:01:06]} Bxc3+ {[%emt 0:23:48]} 7. bxc3 {[%emt 0:00:03]} dxc4 {[%emt 0:00:07]} 8. Bxc4 {[%emt 0:00:05]} c5 {[%emt 0:00:04]} 9. Nf3 {[%emt 0:02:38]} Qc7 {[%emt 0:01:51]} 10. Be2 {[%emt 0:00:17]} Nc6 {[%emt 0:06:41] E53: Nimzo-Indian: Rubinstein: Main Line (4...0-0 5 Nf3 d5 6 Bd3 c5 7 0-0).} 11. Bb2 $5 {[%emt 0:00:39][%mdl 4] A promising side line.} Rd8 {[%emt 0:01:38]} 12. Qc2 {[%emt 0:01:31] [#]} Bd7 $146 {[%emt 0:05:56] The position is equal.} ({Predecessor:} 12... e5 13. dxe5 Nxe5 14. c4 Nxf3+ 15. gxf3 Ne8 16. f4 b6 17. Rg1 f6 18. Bd3 Rxd3 19. Qxd3 {1-0 (62) Predke,A (2580)-Gelfand,B (2650) Riga 2021}) 13. O-O {[%emt 0:17:31]} Rac8 {[%emt 0:00:11]} 14. Rac1 {[%emt 0:15:36]} Ne7 {[%emt 0:00:43]} 15. Bd3 {[%emt 0:04:32]} Ng6 {[%emt 0:06:00]} 16. Qe2 {[%emt 0:11:08]} Bc6 {[%emt 0:03:35]} 17. Nd2 {[%emt 0:02:37]} e5 {[%emt 0:02:52] Against f4} 18. g3 {[%emt 0:06:42]} h5 {[%emt 0:28:54]} 19. e4 {[%emt 0:10:35]} (19. Bf5 $5 {[%cal Rf5c8]}) 19... cxd4 {[%emt 0:00:23]} 20. cxd4 {[%emt 0:00:04]} exd4 {[%emt 0:00:03]} 21. f4 {[%emt 0:00:32] Inhibits Ne5.} h4 {[%emt 0:04:24]} 22. Nf3 {[%emt 0:06:15]} hxg3 {[%emt 0:04:54]} 23. hxg3 {[%emt 0:00:11]} Qb6 {[%emt 0:02:27][%cal Oc6e4]} 24. Ng5 {[%emt 0:08:58] And now e5 would win.} Bb5 $1 {[%emt 0:00:28]} 25. Rcd1 {[%emt 0:05:51]} Nf8 {[%emt 0:02:47][%cal Of6g4]} 26. Rd2 {[%emt 0:03:56]} (26. Rf2 $11 Bxd3 27. Rxd3) 26... Rc3 {[%emt 0:02:06]} 27. Bxb5 $11 {[%emt 0:01:31] Threatens to win with Bd3.} Rxg3+ {[%emt 0:00:03]} 28. Kh2 {[%emt 0:00:43]} d3 {[%emt 0:01:18] [#]} 29. Qd1 {[%emt 0:00:54]} Qe3 {[%emt 0:00:43]} 30. Bxf6 {[%emt 0:00:34]} gxf6 {[%emt 0:00:23]} 31. Rf3 {[%emt 0:00:25]} Rxf3 {[%emt 0:00:27]} 32. Nxf3 {[%emt 0:00:11] Hoping for Qg1+. Dancing on a razor blade.} Ng6 $2 {[%emt 0:00:40]} (32... Qxf4+ $11 {and Black stays safe.} 33. Kh1 Ne6) 33. f5 $18 {[%emt 0:00:53]} ({Worse is} 33. Bxd3 Nxf4 34. Bf1 Rxd2+ 35. Nxd2 Qf2+ 36. Kh1 Qh4+ 37. Kg1 Qg5+ 38. Kh1 Qh6+ 39. Kg1 Qg5+ 40. Kh1 Qh6+ 41. Kg1 Qg5+ $11) ({Weaker is} 33. Rxd3 Rxd3 34. Bxd3 (34. Qxd3 Qf2+ 35. Kh1 Nxf4 $14) 34... Nxf4 $14) 33... Qh6+ {[%emt 0:00:29]} 34. Kg1 {[%emt 0:00:06]} Qe3+ {[%emt 0:00:36]} 35. Kh1 {[%emt 0:00:16]} Ne5 {[%emt 0:00:19][%mdl 8192]} (35... a6 $16) 36. Nxe5 {[%emt 0:00:36]} fxe5 {[%emt 0:00:09]} 37. Qg1+ {[%emt 0:00:11]} Qxg1+ {[%emt 0:00:03]} 38. Kxg1 {[%emt 0:00:06][%mdl 4096] Endgame KRB-KR} Rd4 {[%emt 0:00:24]} 39. Bxd3 {[%emt 0:00:06]} Ra4 {[%emt 0:00:31]} 40. Ra2 {[%emt 0:00:56]} b5 {[%emt 0:01:03]} (40... Rd4 $142 41. Bc2 Kf8) 41. Bxb5 {[%emt 0:31:11] White is clearly winning.} Rxe4 {[%emt 0:30:08]} 42. Re2 {[%emt 0:00:05] Prevents Re3.} Rxe2 {[%emt 0:00:00]} 43. Bxe2 {[%emt 0:00:00] KB-K3P} Kg7 {[%emt 0:00:00]} 44. Kf2 {[%emt 0:00:00]} Kf6 {[%emt 0:00:00]} 45. Bd3 {[%emt 0:00:00]} Ke7 {[%emt 0:00:00]} 46. Kf3 {[%emt 0:00:00]} f6 {[%emt 0:00:00]} 47. Kg4 {[%emt 0:00:00]} Kf7 {[%emt 0:00:00]} 48. Kh5 {[%emt 0:00:00]} Kg7 {[%emt 0:00:00]} 49. Bb5 {[%emt 0:00:00]} Kh7 {[%emt 0:00:00]} 50. Be8 {[%emt 0:00:00]} Kg7 {[%emt 0:00:00]} 51. Bg6 {[%emt 0:00:00]} a6 {[%emt 0:00:00]} 52. a4 {[%emt 0:00:00]} a5 {[%emt 0:00:00]} 53. Be8 {[%emt 0:00:00]} Kf8 {[%emt 0:00:00]} 54. Bb5 {[%emt 0:00:00]} Kg7 {[%emt 0:00:00]} 55. Bc6 {[%emt 0:00:00]} Kh7 {[%emt 0:00:00]} 56. Be8 {[%emt 0:00:00]} Kg7 {[%emt 0:00:00]} 57. Bg6 {[%emt 0:00:00] Weighted Error Value: White=0.11 (very precise) /Black=0.42} 1-0

[Event "Deutschland Grand Prix 2022"]
[Site "Dortmund"]
[Date "2022.07.24"]
[Round "7.1"]
[White "Bluebaum, Matthias"]
[Black "Deac, Bogdan-Daniel"]
[Result "1/2-1/2"]
[ECO "D11"]
[WhiteElo "2673"]
[BlackElo "2692"]
[Annotator "TA"]
[PlyCount "120"]
[EventDate "2022.07.17"]
[EventType "tourn"]
[EventCountry "GER"]
[SourceTitle "playchess.com"]
[Source "ChessBase"]
[SourceQuality "1"]
[TimeControl "40/5400+30:1800+30"]

{[%evp 9,120,13,18,14,32,12,21,16,13,22,28,15,26,26,32,10,11,13,33,39,33,36,46,35,33,37,57,59,58,58,81,78,78,78,78,78,85,85,85,85,85,85,92,93,115,115,193,197,183,34,35,35,35,35,42,34,34,34,34,34,34,34,34,0,0,0,0,0,0,0,0,0,0,0,0,0,0,0,0,0,0,0,0,0,0,0,0,0,0,0,0,0,0,0,0,0,0,0,0,0,0,0,0,0,0,0,0,0,0,0,0,0,0]} 1. d4 {[%emt 0:00:04]} d5 {[%emt 0:00:02]} 2. c4 {[%emt 0:01:01]} c6 {[%emt 0:00:02]} 3. e3 {[%emt 0:01:26]} Nf6 {[%emt 0:00:31]} 4. Qc2 {[%emt 0:00:49]} g6 {[%emt 0:02:56]} 5. Nf3 {[%emt 0:00:34]} Bg7 {[%emt 0:00:51]} 6. Be2 {[%emt 0:00:04] D11: Slav Defence: 3 Nf3 sidelines and 3...Nf6 4 e3 Bg4.} O-O {[%emt 0:07:34][%cal Oc6c5]} 7. O-O {[%emt 0:00:04]} Bg4 {[%emt 0:05:17]} 8. h3 {[%emt 0:02:51]} Bxf3 {[%emt 0:04:00]} 9. Bxf3 {[%emt 0:00:02] [#]} e6 $146 {[%emt 0:00:18]} ({Predecessor:} 9... dxc4 10. Na3 Nbd7 11. Nxc4 Qc7 12. Bd2 Rac8 13. Rac1 Rfe8 14. Rfd1 Qb8 15. b4 Nb6 {1-0 (47) Predke,A (2682)-Jumabayev,R (2631) Warsaw 2021}) 10. Nc3 {[%emt 0:09:30]} Nbd7 {[%emt 0:06:27]} 11. b3 {[%emt 0:03:03]} Rc8 {[%emt 0:01:43]} 12. Ba3 {[%emt 0:17:43]} Re8 {[%emt 0:01:11]} 13. Bd6 {[%emt 0:02:49]} e5 {[%emt 0:06:17]} 14. dxe5 {[%emt 0:01:45]} Nxe5 {[%emt 0:01:34]} 15. Bxe5 {[%emt 0:00:06]} Rxe5 {[%emt 0:00:05]} 16. cxd5 {[%emt 0:01:47]} cxd5 {[%emt 0:04:20][%cal Of6e4]} 17. Qd3 {[%emt 0:01:54] Inhibits Ne4.} Ne4 {[%emt 0:06:08]} 18. Nxe4 {[%emt 0:05:27]} dxe4 {[%emt 0:04:11]} 19. Bxe4 {[%emt 0:01:40]} Rxe4 {[%emt 0:10:40]} 20. Qxe4 {[%emt 0:00:12]} Bxa1 {[%emt 0:00:04]} 21. Rxa1 $14 {[%emt 0:00:09][%mdl 4096] Endgame KQR-KQR} b6 {[%emt 0:00:34]} 22. a4 {[%emt 0:07:14]} a5 {[%emt 0:11:16]} 23. b4 {[%emt 0:07:22]} axb4 {[%emt 0:03:26]} 24. Qxb4 {[%emt 0:03:05]} Rc2 {[%emt 0:00:14][%cal Oc2f2]} 25. Qf4 {[%emt 0:01:42]} h5 {[%emt 0:07:31]} 26. Rb1 {[%emt 0:02:48]} h4 {[%emt 0:11:15]} 27. Rb4 {[%emt 0:06:51]} g5 {[%emt 0:04:32]} (27... Rc1+ $16 {was worth a try.} 28. Kh2 Rc2 29. Qxh4 Qxh4 30. Rxh4 Rxf2) 28. Rd4 $18 {[%emt 0:07:29]} Qe7 {[%emt 0:00:24] [#]} 29. Qd6 {[%emt 0:07:15]} ({Don't do} 29. Qb8+ $6 Kg7 $14) ({Better is} 29. Qf5 $1 $18 {[%cal Rf5c2]} Rc7 30. Qd3) 29... Qxd6 $14 {[%emt 0:00:48]} 30. Rxd6 {[%emt 0:00:02] KR-KR} Ra2 {[%emt 0:00:37]} 31. Rd4 {[%emt 0:02:22] Black must now prevent f4.} f6 {[%emt 0:00:34]} 32. f4 {[%emt 0:01:22] fxg5 is the strong threat.} Kf7 {[%emt 0:00:33]} 33. fxg5 {[%emt 0:01:46]} fxg5 {[%emt 0:00:05]} 34. Rb4 {[%emt 0:00:07]} Ke7 {[%emt 0:00:56]} 35. Kf1 {[%emt 0:01:49]} Kf7 {[%emt 0:00:24]} 36. Rb5 {[%emt 0:02:19]} (36. Rxb6 $5 {[%cal Rb6a6]} Rxa4 37. Ke2 $14) 36... g4 {[%emt 0:00:37] The position is equal.} 37. hxg4 {[%emt 0:01:54]} Rxa4 {[%emt 0:00:06]} 38. Rxb6 {[%emt 0:00:29] [#] And now g5 would win.} Rxg4 {[%emt 0:00:39]} 39. Kf2 {[%emt 0:00:16]} Kg7 {[%emt 0:00:40]} 40. Rd6 {[%emt 0:00:03]} Rg5 {[%emt 0:00:35]} 41. Rd4 {[%emt 0:31:10]} Rh5 {[%emt 0:30:26]} 42. Rg4+ {[%emt 0:00:00]} Kf6 {[%emt 0:00:00]} 43. Rf4+ {[%emt 0:00:00]} Kg5 {[%emt 0:00:00]} 44. Rf3 {[%emt 0:00:00]} Kg4 {[%emt 0:00:00]} 45. Rf8 {[%emt 0:00:00]} Rh7 {[%emt 0:00:00]} 46. Ke2 {[%emt 0:00:00]} Rg7 {[%emt 0:00:00]} 47. Kf2 {[%emt 0:00:00]} Rh7 {[%emt 0:00:00]} 48. Rf6 {[%emt 0:00:00]} h3 {[%emt 0:02:08]} 49. gxh3+ {[%emt 0:00:00]} Rxh3 {[%emt 0:00:09]} 50. Ke2 {[%emt 0:00:00]} Rh1 {[%emt 0:00:35]} 51. Kd3 {[%emt 0:00:00]} Kg5 {[%emt 0:00:22]} 52. Rf8 {[%emt 0:00:00]} Ra1 {[%emt 0:00:29]} 53. e4 {[%emt 0:01:58]} Ra3+ {[%emt 0:00:28]} 54. Kd4 {[%emt 0:00:04]} Ra4+ {[%emt 0:00:03]} 55. Kd5 {[%emt 0:00:06]} Ra5+ {[%emt 0:00:04]} 56. Kd6 {[%emt 0:00:06]} Ra6+ {[%emt 0:00:03]} 57. Kd7 {[%emt 0:00:09]} Ra7+ {[%emt 0:00:18]} 58. Kd8 {[%emt 0:00:07]} Ra8+ {[%emt 0:00:04]} 59. Ke7 {[%emt 0:00:03]} Rxf8 {[%emt 0:00:03]} 60. Kxf8 {[%emt 0:00:04]} Kf4 {[%emt 0:00:05] Weighted Error Value: White=0.06 (flawless) /Black=0.05 (flawless)} 1/2-1/2

[Event "Deutschland Grand Prix 2022"]
[Site "Dortmund"]
[Date "2022.07.24"]
[Round "7.2"]
[White "Navara, David"]
[Black "Eljanov, Pavel"]
[Result "1/2-1/2"]
[ECO "D35"]
[WhiteElo "2688"]
[BlackElo "2681"]
[Annotator "TA"]
[PlyCount "81"]
[EventDate "2022.07.17"]
[EventType "tourn"]
[EventCountry "GER"]
[SourceTitle "playchess.com"]
[Source "ChessBase"]
[SourceQuality "1"]
[TimeControl "40/5400+30:1800+30"]

{[%evp 18,81,0,0,0,0,0,0,0,0,0,0,0,0,24,17,11,25,26,26,29,26,31,22,37,26,39,37,93,99,91,99,98,32,35,34,27,18,12,20,120,0,0,0,0,0,0,0,0,-158,-167,-156,-158,-158,-185,-175,-182,-188,-96,-120,0,-165,0,-83,0,-160]} 1. d4 {[%emt 0:00:02]} Nf6 {[%emt 0:00:06]} 2. c4 {[%emt 0:00:05]} e6 {[%emt 0:00:04]} 3. Nf3 {[%emt 0:00:04]} d5 {[%emt 0:00:06]} 4. Nc3 {[%emt 0:00:05]} Nbd7 {[%emt 0:00:48]} 5. cxd5 {[%emt 0:01:57]} exd5 {[%emt 0:00:05]} 6. Bf4 {[%emt 0:00:12]} c6 {[%emt 0:00:33]} 7. Qc2 {[%emt 0:02:26]} Nh5 {[%emt 0:01:27]} 8. Bg5 {[%emt 0:01:10]} Be7 {[%emt 0:00:09]} 9. Bxe7 {[%emt 0:00:41]} Qxe7 {[%emt 0:00:04]} 10. e3 {[%emt 0:01:22]} g6 {[%emt 0:02:57] D35: Queen's Gambit Declined: Exchange Variation.} 11. O-O-O {[%emt 0:01:50] The old main line.} Nb6 {[%emt 0:02:47]} 12. Bd3 {[%emt 0:16:53]} Bg4 {[%emt 0:01:37]} 13. h3 {[%emt 0:02:51]} Bxf3 {[%emt 0:00:09]} 14. gxf3 {[%emt 0:00:06]} O-O-O {[%emt 0:02:36]} 15. Qb3 {[%emt 0:04:58] [#]} Qc7 $146 {[%emt 0:12:38]} ({Predecessor:} 15... f5 16. a4 Kb8 17. a5 Nc8 18. a6 b6 19. f4 Nf6 20. Kb1 Ne4 21. Nxe4 fxe4 {½-½ (29) Lindsalu,I (2082)-Horak,J (2162) IECG email 2005}) 16. Kb1 {[%emt 0:01:29]} Kb8 {[%emt 0:00:18]} 17. Rc1 {[%emt 0:02:35]} Nf6 {[%emt 0:05:46]} 18. Rc2 {[%emt 0:05:00]} Nc8 {[%emt 0:10:43]} 19. Na4 {[%emt 0:04:34]} Nb6 {[%emt 0:00:58]} 20. Rhc1 {[%emt 0:02:34]} Nfd7 {[%emt 0:03:35]} 21. Nc3 {[%emt 0:04:07][%cal Ba4c3,Bc3e4,Be4d6][%mdl 32]} Qh2 {[%emt 0:05:58]} 22. Qb4 {[%emt 0:07:45]} Qxh3 {[%emt 0:05:34]} ({Better is} 22... Nc8 $14) 23. a4 $1 $16 {[%emt 0:01:33][%cal Ba2a4,Ba4a5][%mdl 32]} Qe6 {[%emt 0:10:42]} 24. a5 {[%emt 0:07:29]} Nc4 {[%emt 0:03:08]} 25. Bxc4 {[%emt 0:05:54]} (25. Ne2 $16) 25... dxc4 $14 {[%emt 0:00:05]} 26. Ne4 {[%emt 0:00:24] Inhibits c5. And now a6 would win.} c5 {[%emt 0:09:50]} 27. dxc5 {[%emt 0:04:27]} Ne5 {[%emt 0:01:23]} 28. Nd6 {[%emt 0:00:11][%csl Gd6][%cal Rb4b7]} Qd5 {[%emt 0:02:20]} (28... Rd7 $11) 29. Rxc4 {[%emt 0:19:12] White is more active.} (29. Nxc4 Nd3 30. Qa3 Nxc1 31. Rxc1 Qd3+ 32. Qxd3 Rxd3 $17) (29. Rd2 $16 Qc6 30. Rcd1) 29... Nxc4 $11 {[%emt 0:00:08]} 30. Rxc4 {[%emt 0:00:06][%cal Oc5c6] Black must now prevent c6!} Rd7 {[%emt 0:04:10]} 31. a6 {[%emt 0:00:55]} Qxf3 {[%emt 0:05:31]} 32. Nxb7 {[%emt 0:02:06]} Ka8 {[%emt 0:01:34]} (32... Qxf2 $2 33. Nd6+ Kc7 34. Qb7+ Kd8 35. Qc8+ Ke7 36. Qxh8 $18) 33. c6 $2 {[%emt 0:00:15]} (33. Rd4 $11) 33... Rc7 $1 $17 {[%emt 0:00:14]} 34. Qd6 {[%emt 0:01:40]} Rhc8 {[%emt 0:00:56][%cal Rc7c6]} 35. e4 {[%emt 0:00:26]} Qxf2 {[%emt 0:03:39] Threatens to win with ...Qf1+.} (35... Rxc6 $2 36. Qd5 $1 Qh1+ 37. Ka2 $18) 36. Rd4 {[%emt 0:00:16][%cal Od6c7]} Qf1+ {[%emt 0:00:20]} (36... Rxc6 37. Qxc6 $3 {[%mdl 512]} Kb8 38. Qd6+ Rc7 39. Ka2 Qf1 40. Nc5 Qb5 41. Rb4 $3 {[%mdl 512]} Qxb4 42. Qd8+ Rc8 43. Nd7+ Ka8 44. Qxc8+) 37. Rd1 {[%emt 0:00:06]} Qe2 {[%emt 0:01:35]} (37... Qf3 $19 38. Qd5 (38. Nc5 $2 Qe2 $17) 38... Qe2) 38. Rd4 {[%emt 0:00:52][%cal Od6c7] aiming for Qxc7!} Qf1+ {[%emt 0:01:02]} (38... Rxc6 39. Qxc6 $3 {[%mdl 512]} Kb8 40. Qd6+ Ka8 41. Nc5 Qe1+ 42. Rd1 Qb4 43. Qd5+ Kb8 44. Nd7+ Kc7 45. Rc1+) (38... Qxa6 $2 39. Qxc7 $3 {[%mdl 512]} Qf1+ 40. Ka2 Qa6+ 41. Kb3 (41. Qa5 Rxc6 42. Rb4 g5 $11) 41... Qb5+ 42. Ka3 Qa6+ 43. Kb4 Qxc6 44. Qxc6 Rxc6 45. Na5 Rb6+ 46. Kc4 $18) 39. Rd1 {[%emt 0:00:07]} Qe2 {[%emt 0:02:39]} ({Black should try} 39... Qf3 $19 40. Qd5 (40. Nc5 $2 Qe2 $17) 40... Qe2) 40. Rd4 {[%emt 0:01:04][%cal Od6c7] Hoping for Qxc7! Really sharp!} Qf1+ {[%emt 0:01:25]} (40... Rxc6 {[#] leads to mate.} 41. Qxc6 $3 {[%mdl 512]} Kb8 42. Qd6+ Ka8 43. Nc5 Qe1+ 44. Rd1 Qb4 45. Qd5+ Kb8 46. Nd7+ Kc7 47. Rc1+) (40... Qxa6 $2 41. Qxc7 $3 {[%mdl 512]} Qf1+ 42. Ka2 Qa6+ 43. Kb3 (43. Qa5 Rxc6 44. Rb4 g5 $11) 43... Qb5+ 44. Ka3 Qxc6 45. Qxc6 Rxc6 46. Na5 $18) (40... Qg4 $142 41. Nc5 Qg5) 41. Rd1 {[%emt 0:00:23] Weighted Error Value: White=0.15 (very precise) /Black=0.24 (precise)} 1/2-1/2